fUSD/lending_fUSD_20251013
["ID","MTS","AMOUNT","RATE_DAILY","PERIOD"]
[391127428,1760376632504,-175.5400178,0.000149,2]
[391127429,1760376632518,-420.38703034,0.000149,2]
[391127430,1760376632528,-185.56181698,0.000149,2]
[391127432,1760376632538,-393.29854405,0.000149,2]
[391127434,1760376632547,-502.35805377,0.000149,2]
[391127436,1760376632556,-4771.27219934,0.000149,2]
[391127438,1760376632565,-1200.0,0.00014957,2]
[391127440,1760376632574,-150.0,0.00014957,2]
[391127442,1760376632584,-355.13477853,0.00014958,2]
[391127445,1760376632594,-171.43185533,0.00014958,2]
[391127449,1760376632603,-300.0,0.00014958,2]
[391127452,1760376632612,-250.0,0.00014958,2]
[391127454,1760376632622,-2500.0,0.00014958,2]
[391127455,1760376632631,-67.36088562,0.00014958,2]
[391127458,1760376632643,-1627.19614964,0.00014958,2]
[391127460,1760376632652,-300.0,0.00014958,2]
[391127461,1760376632661,-500.0,0.00014973,2]
[391127462,1760376632671,-500.0,0.00014973,2]
[391127463,1760376632680,-500.0,0.00014973,2]
[391127464,1760376632689,-500.0,0.00014973,2]
[391127466,1760376632699,-160.27666064,0.00014973,2]
[391127468,1760376632708,-412.50300685,0.00014973,2]
[391127469,1760376632718,-500.0,0.00014973,2]
[391127470,1760376632731,-500.0,0.00014973,2]
[391127471,1760376632741,-167.1193627,0.0001499,2]
[391127472,1760376632751,-244.37865579,0.00014999,2]
[391127473,1760376632760,-236.75069936,0.00014999,2]
[391127474,1760376632770,-195.18720543,0.00014999,2]
[391127475,1760376632780,-634.18339323,0.00014999,2]
[391127476,1760376632790,-500.0,0.00014999,2]
[391127477,1760376632799,-178.92588708,0.00014999,2]
[391127478,1760376632809,-500.0,0.00014999,2]
[391127479,1760376632818,-500.0,0.00014999,2]
[391127480,1760376632827,-500.0,0.00014999,2]
[391127481,1760376632837,-500.0,0.00014999,2]
[391127482,1760376632846,-500.0,0.00014999,2]
[391127483,1760376632856,-500.0,0.00014999,2]
[391127484,1760376632865,-596.25827056,0.00014999,2]
[391127485,1760376632875,-499.99999999,0.00014999,2]
[391127486,1760376632884,-29461.22596226,0.00015,2]
[391127487,1760376632896,-85319.28341644,0.00015,2]
[391127488,1760376632908,-614.37390575,0.00015,2]
[391127489,1760376632919,-9055.568093,0.00015,2]
[391127490,1760376632930,-4024.933071,0.00015,2]
[391127491,1760376637988,1000.0,0.00027397,120]
[391127493,1760376638244,-8877.46875877,0.00015,2]
[391127494,1760376638257,-314.98778,0.00015,2]
[391127629,1760376640161,-50484.12546131,0.00015,2]
[391127630,1760376640174,-29120.80847923,0.00015,2]
[391127631,1760376640218,-161.21399563,0.000149,2]
[391127632,1760376640229,-1033550.83500947,0.00015,2]
[391127633,1760376640383,-26963.91714066,0.00015,2]
[391127649,1760376643405,-274.29769183,0.00015,2]
[391127650,1760376643416,-228191.06127939,0.00015,2]
[391127651,1760376643460,-1030.013985,0.00015,2]
[391127661,1760376646173,-523.76962602,0.00015,2]
[391127662,1760376646231,-6878.4,0.00015,2]
[391127663,1760376646394,-12776.0895639,0.00015,2]
[391127664,1760376646405,-2407.60128595,0.00015,2]
[391127665,1760376646417,-12120.0,0.00015,2]
[391127666,1760376646429,-799.1027706,0.00015,2]
[391127669,1760376649759,603.0,0.0002629,120]
[391127670,1760376650195,603.0,0.0002628,120]
[391127671,1760376650639,603.0,0.0002627,120]
[391127672,1760376655106,150.0,0.000152,120]
[391127673,1760376690528,1008.34537892,0.00027397,120]
[391127674,1760376748336,401.73522018,0.00027397,120]
[391127675,1760376845039,156.18,7.972e-05,2]
[391127676,1760376845261,156.18,8.769e-05,2]
[391127677,1760376845524,156.18,9.567e-05,2]
[391127678,1760376845719,150.0,0.000152,120]
[391127679,1760376845763,156.18,0.00010364,2]
[391127680,1760376845980,156.18,0.00011161,2]
[391127681,1760376846257,156.18,0.00011958,2]
[391127683,1760376909500,214.0,0.0002707,120]
[391127684,1760376928544,279.38,0.00027397,120]
[391127685,1760376930347,591.0,0.00027397,120]
[391127687,1760377017627,728.0,0.00027397,120]
[391127688,1760377037731,150.0,0.000152,120]
[391127689,1760377216242,800.0,0.00026986,120]
[391127690,1760377314968,150.0,0.00014145,120]
[391127691,1760377383714,204.71,0.00026986,120]
[391127692,1760377390189,422.0,0.0002629,120]
[391127693,1760377390625,422.0,0.0002628,120]
[391127694,1760377391059,422.0,0.0002627,120]
[391127695,1760377416994,150.0,0.000152,120]
[391127696,1760377608823,150.0,0.000152,120]
[391127698,1760377800591,150.0,0.000152,120]
[391127706,1760377832313,-156.18,0.00012756,2]
[391127707,1760377832324,-156.18,0.00013553,2]
[391127708,1760377832334,-167.4791853,0.0001393,2]
[391127709,1760377832344,-150.0,0.00014,2]
[391127710,1760377832354,-300.0,0.00014029,2]
[391127711,1760377832363,-300.0,0.00014029,2]
[391127712,1760377832372,-1200.0,0.00014029,2]
[391127713,1760377832382,-1200.0,0.0001403,2]
[391127714,1760377832391,-150.0,0.0001403,2]
[391127715,1760377832401,-195.0,0.00014031,2]
[391127716,1760377832411,-150.0,0.00014031,2]
[391127717,1760377832420,-2500.0,0.00014031,2]
[391127718,1760377832430,-2000.0,0.00014031,2]
[391127719,1760377832439,-300.0,0.00014031,2]
[391127720,1760377832449,-250.0,0.00014031,2]
[391127721,1760377832458,-195.0,0.00014031,2]
[391127722,1760377832468,-2000.0,0.00014031,2]
[391127723,1760377832478,-84.7408147,0.00014031,2]
[391127724,1760377832490,-215.2591853,0.00014031,2]
[391127725,1760377832499,-202.3951427,0.00014098,2]
[391127726,1760377832511,-466.76144635,0.00014098,2]
[391127727,1760377832522,-486.18341095,0.00014098,2]
[391127728,1760377832532,-150.0,0.00014145,2]
[391127729,1760377832542,-99.98521102,0.00014281,2]
[391127730,1760377832569,-1118.96304471,0.00014281,2]
[391127731,1760377832581,-1532.05174427,0.00014281,2]
[391127733,1760377832592,-166.66,0.00014323,2]
[391127736,1760377832602,-156.18,0.0001435,2]
[391127738,1760377832611,-166.66,0.00014625,2]
[391127740,1760377832620,-803.0609879,0.00014743,2]
[391127742,1760377832629,-400.0,0.000148,5]
[391127744,1760377832638,-263.86360023,0.0001485,2]
[391127746,1760377832647,-1092.95217248,0.00014898,2]
[391127748,1760377832658,-1315.15782752,0.00014898,2]
[391127750,1760377832668,-176.078,0.00014898,2]
[391127752,1760377832677,-107.99167615,0.00014898,2]
[391127754,1760377832688,-392.00832385,0.00014898,2]
[391127756,1760377832697,-500.0,0.00014898,2]
[391127758,1760377832707,-161.02577204,0.00014898,2]
[391127763,1760377832746,-63.96422796,0.00014898,2]
[391127765,1760377832761,-364.03577204,0.00014898,2]
[391127768,1760377832773,-135.96422796,0.00014898,2]
[391127771,1760377832783,-232.66693065,0.00014898,2]
[391127773,1760377832795,-500.0,0.00014898,2]
[391127775,1760377832804,-69.95511108,0.00014898,2]
[391127777,1760377832815,-385.9555348,0.00014898,2]
[391127779,1760377832826,-44.08935412,0.00014898,2]
[391127782,1760377832840,-500.0,0.00014898,2]
[391127785,1760377832849,-500.0,0.00014898,2]
[391127787,1760377832857,-500.0,0.00014898,2]
[391127790,1760377832866,-500.0,0.00014898,2]
[391127792,1760377832874,-500.0,0.00014898,2]
[391127794,1760377832883,-500.0,0.00014898,2]
[391127795,1760377832894,-500.0,0.00014898,2]
[391127796,1760377832906,-500.0,0.00014898,2]
[391127797,1760377832916,-500.0,0.00014898,2]
[391127798,1760377832927,-500.0,0.00014898,2]
[391127799,1760377832938,-500.0,0.00014898,2]
[391127800,1760377832950,-87.459574,0.00014899,5]
[391127801,1760377832976,-500.0,0.00014898,2]
[391127802,1760377832987,-220.82215887,0.00014899,5]
[391127803,1760377832999,-326.50057698,0.00014899,5]
[391127804,1760377833049,-347.3886653,0.00014898,2]
[391127805,1760377833060,-152.6113347,0.00014898,2]
[391127806,1760377833070,-500.0,0.00014898,2]
[391127807,1760377833079,-15523.75213565,0.00014899,5]
[391127808,1760377833089,-165.27947311,0.000149,2]
[391127809,1760377833098,-171.85155615,0.000149,2]
[391127810,1760377833107,-158.61839903,0.000149,2]
[391127811,1760377833117,-714.21770095,0.000149,2]
[391127812,1760377833126,-900.0,0.000149,5]
[391127813,1760377833136,-153.15329582,0.000149,2]
[391127814,1760377833145,-151.52788463,0.000149,2]
[391127815,1760377833154,-4909.71670425,0.000149,2]
[391127816,1760377833163,-185.56181697,0.000149,2]
[391127817,1760377833174,-166.66,0.00014927,2]
[391127818,1760377833183,-500.0,0.00014963,2]
[391127819,1760377833191,-151.0,0.00014963,2]
[391127820,1760377833201,-500.0,0.00014963,2]
[391127821,1760377833211,-151.0,0.00014963,2]
[391127822,1760377833220,-151.0,0.00014963,2]
[391127823,1760377833230,-500.0,0.00014963,2]
[391127824,1760377833239,-151.0,0.00014963,2]
[391127825,1760377833249,-151.0,0.00014963,2]
[391127826,1760377833259,-500.0,0.00014963,2]
[391127827,1760377833268,-151.0,0.00014963,2]
[391127828,1760377833277,-151.0,0.00014963,2]
[391127829,1760377833287,-374.01072987,0.00014963,2]
[391127830,1760377833296,-260.37150288,0.00014963,2]
[391127831,1760377833305,-151.0,0.00014963,2]
[391127832,1760377833314,-151.0,0.00014963,2]
[391127833,1760377833323,-151.0,0.00014963,2]
[391127834,1760377833332,-151.0,0.00014963,2]
[391127835,1760377833341,-151.0,0.00014963,2]
[391127836,1760377833350,-151.0,0.00014963,2]
[391127837,1760377833359,-200.0,0.00014963,2]
[391127838,1760377833368,-151.0,0.00014963,2]
[391127839,1760377833379,-151.0,0.00014963,2]
[391127840,1760377833387,-200.0,0.00014963,2]
[391127841,1760377833397,-151.0,0.00014963,2]
[391127842,1760377833406,-154.99182914,0.00014963,2]
[391127843,1760377833416,-151.0,0.00014963,2]
[391127844,1760377833425,-151.0,0.00014963,2]
[391127845,1760377833433,-200.0,0.00014963,2]
[391127846,1760377833443,-503.92,0.00014972,2]
[391127847,1760377833451,-167.340193,0.00014973,2]
[391127848,1760377833460,-500.69197338,0.00014973,2]
[391127849,1760377833470,-500.0,0.00014973,2]
[391127850,1760377833479,-500.0,0.00014973,2]
[391127851,1760377833488,-504.67142996,0.00014973,2]
[391127852,1760377833498,-500.0,0.00014973,2]
[391127853,1760377833508,-500.0,0.00014973,2]
[391127854,1760377833518,-500.0,0.00014973,2]
[391127855,1760377833527,-500.0,0.00014973,2]
[391127856,1760377833539,-167.11936271,0.0001499,2]
[391127857,1760377833548,-171.63,0.0001499,2]
[391127858,1760377833558,-1000.0,0.00014999,2]
[391127859,1760377833568,-1000.0,0.00014999,2]
[391127860,1760377833577,-1000.0,0.00014999,2]
[391127861,1760377833588,-675.40722301,0.00014999,2]
[391127862,1760377833598,-75521.94941834,0.00015,2]
[391127863,1760377833610,-28036.47610025,0.00015,2]
[391127864,1760377833621,-33754.48536526,0.00015,2]
[391127865,1760377833637,-556.8968615,0.00015,2]
[391127866,1760377833648,-1524.09389807,0.00015,2]
[391127867,1760377833659,-2345.18931984,0.00015,2]
[391127868,1760377833670,-814.82102388,0.00015,2]
[391127869,1760377833701,-500.0,0.00014898,2]
[391127870,1760377833708,-500.0,0.00014898,2]
[391127871,1760377833717,-23995.10140383,0.00015,2]
[391127872,1760377833727,-4997.87782129,0.00015,2]
[391127873,1760377833738,-807.86984896,0.00015,2]
[391127874,1760377833747,-10616.74971772,0.00015,2]
[391127875,1760377833761,-27956.10086272,0.00015,2]
[391127878,1760377838348,-500.0,0.00014898,2]
[391127879,1760377838358,-500.0,0.00014898,2]
[391127880,1760377838368,-271.37012887,0.00014898,2]
[391127881,1760377838454,-228.62987113,0.00014898,2]
[391127882,1760377838463,-500.0,0.00014898,2]
[391127883,1760377838472,-500.0,0.00014898,2]
[391127884,1760377838482,-500.0,0.00014898,2]
[391127885,1760377838492,-500.0,0.00014898,2]
[391127886,1760377838501,-500.0,0.00014898,2]
[391127887,1760377838511,-500.0,0.00014898,2]
[391127888,1760377838520,-390.18532887,0.00014898,2]
[391127889,1760377838560,-109.81467113,0.00014898,2]
[391127890,1760377838569,-500.0,0.00014898,2]
[391127891,1760377838579,-500.0,0.00014898,2]
[391127892,1760377838588,-174.67600626,0.00014898,2]
[391127893,1760377838597,-178985.01492257,0.00015,2]
[391128056,1760377840339,-454533.47747108,0.00015,2]
[391128058,1760377840351,-2878.39558955,0.00015,2]
[391128068,1760377840442,-24023.99999999,0.00015,2]
[391128069,1760377840508,-500.0,0.00015,2]
[391128071,1760377840983,-947.88760323,0.00015,2]
[391128089,1760377843559,-258.148,0.00015,2]
[391128092,1760377846406,-434.73195924,0.00015,2]
[391128093,1760377846417,-631.98109136,0.00015,2]
[391128096,1760377848160,-6123.07408779,0.00015,2]
[391128097,1760377848175,-10733.6619619,0.00015,2]
[391128098,1760377848191,-14580.4194224,0.00015,2]
[391128099,1760377848218,-108661.18642173,0.00015,2]
[391128100,1760377912239,150.0,0.00026,120]
[391128101,1760377923635,150.0,0.00026,120]
[391128102,1760377935928,277.372,0.00026,120]
[391128103,1760377989161,150.0,0.000152,120]
[391128104,1760377995539,500.0,0.00027126,120]
[391128105,1760378008184,500.0,0.00027126,120]
[391128106,1760378022099,500.0,0.00026887,120]
[391128108,1760378104269,214.0,0.00027291,120]
[391128109,1760378177707,150.0,0.000152,120]
[391128110,1760378185512,2000.0,0.00027397,120]
[391128114,1760378371874,261.43,0.000152,120]
[391128115,1760378417154,500.0,0.00027397,120]
[391128116,1760378424939,400.0,0.00027397,120]
[391128117,1760378435513,600.0,0.00027397,120]
[391128118,1760378445795,500.0,0.00027397,120]
[391128119,1760378464458,421.45271046,0.00027397,120]
[391128120,1760378596923,2000.0,0.0002536,120]
[391128121,1760378600250,500.0,0.000254,120]
[391128122,1760378600624,500.0,0.00026746,120]
[391128123,1760378618041,500.0,0.00025591,120]
[391128124,1760378618077,500.0,0.00026841,120]
[391128128,1760378809711,295.0,0.00027357,120]
[391128129,1760378810151,295.0,0.00027347,120]
[391128130,1760378810590,295.0,0.00027337,120]
[391128134,1760379032946,-323.44091325,0.00013699,2]
[391128135,1760379032957,-26.11908675,0.00013699,2]
[391128136,1760379032966,-332.51714522,0.00013724,2]
[391128137,1760379032975,-286.63879804,0.00013749,2]
[391128138,1760379032985,-300.0,0.000138,2]
[391128139,1760379032995,-500.0,0.00014,2]
[391128140,1760379033005,-296.15468479,0.00014055,2]
[391128141,1760379033041,-903.84531521,0.00014055,2]
[391128142,1760379033051,-300.0,0.00014055,2]
[391128143,1760379033063,-300.0,0.00014055,2]
[391128144,1760379033072,-300.0,0.00014055,2]
[391128145,1760379033084,-1200.0,0.00014055,2]
[391128146,1760379033093,-12309.40768079,0.00014056,2]
[391128158,1760379033535,-430.93434079,0.00014056,2]
[391128159,1760379033548,-566.66878313,0.00014056,2]
[391128160,1760379033572,-893.45919529,0.00014056,2]
[391128161,1760379033582,-1515.34080471,0.00014108,2]
[391128162,1760379033621,-189.12919529,0.00014108,2]
[391128163,1760379033630,-250.0,0.00014149,2]
[391128164,1760379033640,-168.50718993,0.00014495,2]
[391128165,1760379033650,-1985.0,0.00014495,2]
[391128166,1760379033659,-2507.14,0.000146,2]
[391128167,1760379033668,-889.5266781,0.00014706,2]
[391128168,1760379033678,-150.0,0.00014849,2]
[391128169,1760379033688,-1000.0,0.00014849,2]
[391128170,1760379033699,-22888.65529504,0.0001485,2]
[391128171,1760379033708,-1671.65025644,0.000149,2]
[391128172,1760379033718,-4457.63933378,0.000149,2]
[391128173,1760379033728,-171.95216703,0.000149,2]
[391128174,1760379033737,-500.0,0.00014972,2]
[391128175,1760379033746,-500.0,0.00014972,2]
[391128176,1760379033756,-500.0,0.00014972,2]
[391128177,1760379033766,-500.0,0.00014972,2]
[391128178,1760379033775,-500.0,0.00014972,2]
[391128179,1760379033785,-500.0,0.00014972,2]
[391128180,1760379033795,-500.0,0.00014972,2]
[391128181,1760379033805,-500.0,0.00014972,2]
[391128182,1760379033815,-500.0,0.00014972,2]
[391128183,1760379033826,-500.0,0.00014972,2]
[391128184,1760379033836,-500.0,0.00014972,2]
[391128185,1760379033847,-500.0,0.00014972,2]
[391128186,1760379033857,-500.0,0.00014972,2]
[391128187,1760379033868,-500.0,0.00014972,2]
[391128188,1760379033879,-500.0,0.00014972,2]
[391128189,1760379033890,-500.0,0.00014973,2]
[391128190,1760379033900,-501.87544709,0.00014973,2]
[391128191,1760379033910,-500.0,0.00014973,2]
[391128192,1760379033920,-461.00697767,0.00014973,2]
[391128193,1760379033930,-582.12131672,0.00014973,2]
[391128194,1760379033940,-500.0,0.00014973,2]
[391128195,1760379033949,-500.0,0.00014973,2]
[391128196,1760379033959,-500.0,0.00014973,2]
[391128197,1760379033968,-529.59492403,0.00014973,2]
[391128198,1760379033977,-500.0,0.00014973,2]
[391128199,1760379033987,-500.0,0.00014973,2]
[391128200,1760379033997,-500.0,0.00014973,2]
[391128201,1760379034006,-500.0,0.00014973,2]
[391128202,1760379034015,-500.0,0.00014973,2]
[391128203,1760379034024,-500.0,0.00014973,2]
[391128204,1760379034034,-200.0,0.00014991,2]
[391128205,1760379034043,-151.0,0.00014991,2]
[391128206,1760379034052,-151.0,0.00014991,2]
[391128207,1760379034064,-151.0,0.00014991,2]
[391128208,1760379034075,-200.0,0.00014991,2]
[391128209,1760379034087,-151.0,0.00014991,2]
[391128210,1760379034097,-151.0,0.00014991,2]
[391128211,1760379034106,-151.0,0.00014991,2]
[391128212,1760379034115,-151.0,0.00014991,2]
[391128213,1760379034125,-151.0,0.00014991,2]
[391128214,1760379034135,-151.0,0.00014991,2]
[391128215,1760379034144,-151.0,0.00014991,2]
[391128216,1760379034154,-151.0,0.00014991,2]
[391128217,1760379034164,-256.00152142,0.00014991,2]
[391128218,1760379034174,-151.0,0.00014991,2]
[391128219,1760379034183,-151.0,0.00014991,2]
[391128220,1760379034192,-151.0,0.00014991,2]
[391128221,1760379034202,-151.0,0.00014991,2]
[391128222,1760379034211,-151.0,0.00014991,2]
[391128223,1760379034220,-151.0,0.00014991,2]
[391128224,1760379034230,-151.0,0.00014991,2]
[391128225,1760379034239,-151.0,0.00014991,2]
[391128226,1760379034248,-151.0,0.00014991,2]
[391128227,1760379034258,-151.0,0.00014991,2]
[391128228,1760379034267,-151.0,0.00014991,2]
[391128229,1760379034276,-151.0,0.00014991,2]
[391128230,1760379034285,-151.0,0.00014991,2]
[391128231,1760379034296,-151.0,0.00014991,2]
[391128232,1760379034307,-151.0,0.00014991,2]
[391128233,1760379034316,-503.92,0.00014997,2]
[391128234,1760379034325,-2257.17715863,0.00014998,2]
[391128235,1760379034335,-184.5846208,0.00014999,2]
[391128236,1760379034345,-33290.842019,0.00014999,2]
[391128237,1760379034354,-625.3306746,0.00014999,2]
[391128238,1760379034363,-136637.91620215,0.00015,2]
[391128239,1760379034376,-1403.84725605,0.00015,2]
[391128244,1760379037760,-159.80927876,0.000149,2]
[391128245,1760379037770,-590.79372748,0.00014972,2]
[391128246,1760379037780,-500.0,0.00014972,2]
[391128247,1760379037789,-500.0,0.00014972,2]
[391128248,1760379037799,-500.0,0.00014972,2]
[391128249,1760379037810,-500.0,0.00014972,2]
[391128250,1760379037820,-500.0,0.00014972,2]
[391128252,1760379037830,-500.0,0.00014972,2]
[391128254,1760379037839,-500.0,0.00014972,2]
[391128256,1760379037849,-7223.08831876,0.00015,2]
[391128259,1760379037861,-36128.03476084,0.00015,2]
[391128260,1760379037870,-72028.03272416,0.00015,2]
[391128263,1760379037882,-15010.12411367,0.00015,2]
[391128265,1760379037893,-782.54342496,0.00015,2]
[391128267,1760379037904,-1351.69949128,0.00015,2]
[391128407,1760379039504,-834.93252449,0.00015,2]
[391128408,1760379039558,-1783.14691611,0.00015,2]
[391128409,1760379039613,-1202.799999,0.00015,2]
[391128410,1760379039625,-4110.20848248,0.00015,2]
[391128411,1760379039668,-2558.4,0.00015,2]
[391128412,1760379039679,-1417.5,0.00015,2]
[391128413,1760379039775,-1075.70213049,0.00015,2]
[391128414,1760379039786,-2105.2953823,0.00015,2]
[391128415,1760379039797,-1738.13698771,0.00015,2]
[391128416,1760379039808,-601.50114901,0.00015,2]
[391128429,1760379042575,-5400.99738397,0.00015,2]
[391128430,1760379042587,-7909.94031501,0.00015,2]
[391128431,1760379042597,-1011.4350618,0.00015,2]
[391128432,1760379042606,-160.0,0.00015,2]
[391128433,1760379042615,-151.0,0.00015,2]
[391128434,1760379042625,-516.30573189,0.00015068,2]
[391128435,1760379042635,-195.0,0.00015068,2]
[391128436,1760379042645,-300.0,0.00015068,2]
[391128437,1760379042654,-150.0,0.00015068,2]
[391128438,1760379042666,-300.0,0.00015068,2]
[391128439,1760379042676,-156.18,0.00015147,2]
[391128440,1760379042686,-166.66,0.00015228,2]
[391128441,1760379042695,-832.0,0.00015267,2]
[391128442,1760379042705,-503.92,0.00015271,2]
[391128443,1760379042714,-1200.0,0.00015397,2]
[391128444,1760379042724,-420.0,0.00015397,2]
[391128445,1760379042734,-420.0,0.00015397,2]
[391128446,1760379042743,-1680.0,0.0001546,2]
[391128447,1760379042753,-17857.89,0.00015517,2]
[391128448,1760379042763,-1000.0,0.00015521,2]
[391128449,1760379042772,-1000.0,0.00015521,2]
[391128450,1760379042782,-166.66,0.0001553,2]
[391128451,1760379042792,-200.0,0.00015539,2]
[391128452,1760379042802,-503.92,0.00015545,2]
[391128453,1760379042812,-503.92,0.00015819,2]
[391128454,1760379042827,-166.66,0.00015831,2]
[391128455,1760379042838,-300.0,0.00015944,2]
[391128456,1760379042847,-156.18,0.00015945,2]
[391128457,1760379042856,-175.53,0.00015958,2]
[391128458,1760379042866,-255.0,0.00015978,2]
[391128459,1760379042876,-1500.0,0.00016068,2]
[391128460,1760379042886,-500.0,0.00016068,2]
[391128461,1760379042895,-200.0,0.00016087,2]
[391128462,1760379042905,-503.92,0.00016093,2]
[391128463,1760379042915,-218.08138793,0.00016438,2]
[391128464,1760379042924,-1671.65025644,0.00016543,2]
[391128465,1760379042935,-4457.63933375,0.00016543,2]
[391128466,1760379042944,-2000.0,0.00016616,2]
[391128467,1760379042954,-3492.1154926,0.00016904,2]
[391128468,1760379042964,-250.0,0.00017,2]
[391128469,1760379042973,-2351.0,0.00017006,2]
[391128470,1760379042984,-159.80927871,0.00017012,2]
[391128471,1760379042993,-2500.0,0.00017164,2]
[391128472,1760379043003,-832.0,0.00017175,2]
[391128473,1760379043013,-433.0,0.00017195,2]
[391128474,1760379043023,-779.1962891,0.00017329,2]
[391128475,1760379043033,-49025.58,0.00017728,2]
[391128476,1760379043042,-1582.99,0.00017728,2]
[391128477,1760379043051,-999.99,0.00017728,2]
[391128478,1760379043061,-150.99,0.00017728,2]
[391128479,1760379043074,-37545.6,0.00017728,2]
[391128480,1760379043088,-1526.99,0.00017728,2]
[391128481,1760379043097,-722.96,0.00017728,2]
[391128482,1760379043107,-9999.99,0.00017728,2]
[391128483,1760379043116,-9999.99,0.00017728,2]
[391128484,1760379043126,-299.99,0.00017728,4]
[391128485,1760379043135,-9999.99,0.00017728,2]
[391128486,1760379043144,-9999.99,0.00017728,2]
[391128487,1760379043154,-863.18,0.00017728,2]
[391128488,1760379043164,-9999.99,0.00017728,2]
[391128489,1760379043173,-150.99,0.00017728,2]
[391128490,1760379043182,-1445.7,0.00017728,2]
[391128491,1760379043191,-475.32661018,0.00017889,2]
[391128492,1760379043200,-7428.1909111,0.00017897,2]
[391128494,1760379043211,-249.25702942,0.000179,2]
[391128495,1760379043220,-206.01260522,0.000179,2]
[391128496,1760379043229,-1671.65025644,0.00018186,2]
[391128497,1760379043238,-4457.63933375,0.00018186,2]
[391128498,1760379043247,-736.0,0.00018502,2]
[391128499,1760379043257,-1657.4534276,0.00018543,2]
[391128500,1760379043266,-606.56,0.00018608,2]
[391128501,1760379043275,-300.0,0.000189,6]
[391128502,1760379043284,-500.0,0.00018973,2]
[391128503,1760379043293,-221573.11579152,0.00019,2]
[391128504,1760379043302,-151.0,0.00019,2]
[391128505,1760379043311,-151.0,0.00019,2]
[391128506,1760379043323,-151.0,0.00019,2]
[391128507,1760379043333,-151.0,0.00019,2]
[391128508,1760379043343,-151.0,0.00019,2]
[391128509,1760379043352,-151.0,0.00019,2]
[391128510,1760379043362,-151.0,0.00019,2]
[391128511,1760379043371,-151.0,0.00019,2]
[391128512,1760379043380,-151.0,0.00019,2]
[391128513,1760379043389,-151.0,0.00019,2]
[391128514,1760379043399,-151.0,0.00019,2]
[391128515,1760379043408,-353.16434436,0.0001901,7]
[391128516,1760379043417,-832.0,0.00019083,2]
[391128517,1760379043426,-1185.79,0.00019178,30]
[391128518,1760379043435,-221.04,0.00019519,2]
[391128519,1760379043445,-151.17,0.00019519,2]
[391128520,1760379043455,-500.0,0.00019521,2]
[391128521,1760379043464,-2000.0,0.000197,2]
[391128522,1760379043473,-1671.65025644,0.00019828,2]
[391128523,1760379043483,-4457.63933375,0.00019828,2]
[391128524,1760379043492,-721.0,0.00019898,2]
[391128525,1760379043500,-872.5470387,0.0002,30]
[391128526,1760379043510,-490.42645703,0.0002,10]
[391128527,1760379043519,-521.01282731,0.0002,7]
[391128528,1760379043528,-254.32366492,0.0002,30]
[391128529,1760379043538,-155.0,0.00020144,2]
[391128530,1760379043547,-349.56,0.00020187,2]
[391128531,1760379043556,-3187.52955498,0.00020347,2]
[391128532,1760379043566,-161.66668499,0.00020621,2]
[391128533,1760379043576,-897.54705706,0.00020706,2]
[391128534,1760379043585,-182.09299339,0.00020706,2]
[391128535,1760379043594,-2000.0,0.00020706,2]